bitfinex/quotes_ETHUSD_20260306
["timestamp","ask_amount","ask_price","bid_price","bid_amount"]
[1772780836839,1.0,2077.2,2076.7,0.001]
[1772780836840,1.0,2077.2,2077.0,2.54916886]
[1772780837146,2.47789149,2077.1,2076.8,2.54916886]
[1772780838446,2.20354374,2077.2,2076.8,2.54916886]
[1772780838751,1.0,2077.2,2076.8,3.75291635]
[1772780838941,1.0,2077.2,2076.9,2.54916886]
[1772780839350,2.20354512,2077.2,2076.9,2.54916886]
[1772780839746,2.47789149,2077.1,2076.7,2.55016886]
[1772780839950,2.47789149,2077.1,2076.8,2.54916886]
[1772780840664,2.45397996,2077.2,2076.8,2.54916886]
[1772780840860,0.25043484,2077.1,2076.8,2.54916886]
[1772780841643,2.72832633,2077.1,2076.7,0.001]
[1772780842046,2.47789149,2077.1,2076.7,0.001]
[1772780842565,2.47789149,2076.9,2076.7,0.001]
[1772780843136,1.20377503,2076.8,2076.7,0.001]
[1772780844472,2.47789149,2076.7,2076.6,0.001]
[1772780845037,1.203833,2076.7,2076.6,0.001]
[1772780845254,1.45421367,2076.8,2076.6,0.001]
[1772780849949,3.93210516,2076.8,2076.6,0.001]
[1772780850852,2.70226041,2076.7,2076.2,4.32573933]
[1772780852277,1.20389097,2076.6,2076.3,2.70473933]
[1772780853977,1.20389097,2076.6,2076.2,0.001]
[1772780853978,2.70226041,2076.5,2076.2,0.001]
[1772780854277,3.906266,2076.5,2076.2,0.001]
[1772780854483,3.906266,2076.5,2076.2,2.70573933]
[1772780854886,2.70226041,2076.5,2076.2,2.70573933]
[1772780855053,3.90622456,2076.5,2076.2,2.70573933]
[1772780855573,2.70226041,2076.5,2076.2,2.70573933]
[1772780855773,0.25043484,2076.5,2076.4,0.001]
[1772780856883,0.25043484,2076.5,2076.3,2.70473933]
[1772780858192,3.65567013,2076.7,2076.3,3.90878675]
[1772780858484,3.65567013,2076.7,2076.3,3.90880355]
[1772780858685,3.65567013,2076.7,2076.3,2.70473933]
[1772780858981,2.70226041,2076.6,2076.1,0.001]
[1772780859964,2.70033395,2076.6,2076.1,0.001]
[1772780860292,2.70033395,2076.6,2076.0,0.001]
[1772780860293,2.45182557,2076.2,2076.0,0.001]
[1772780860979,2.45182557,2076.2,2075.9,0.001]
[1772780861191,0.25043484,2076.1,2075.9,0.001]
[1772780862585,2.70226041,2076.1,2075.9,0.001]
[1772780863186,2.45182557,2076.0,2075.9,0.001]
[1772780863886,2.45182557,2076.7,2075.9,2.70573933]
[1772780864100,0.25043484,2076.7,2075.9,2.70573933]
[1772780864596,1.205688,2077.0,2076.1,2.70473933]
[1772780864597,0.002,2077.0,2076.1,2.70473933]
[1772780864886,0.25043484,2076.8,2076.3,2.70473933]
[1772780865087,2.70226041,2076.8,2076.3,2.70473933]
[1772780865286,0.25043484,2076.8,2076.3,2.70473933]
[1772780866282,2.70226041,2076.8,2076.3,2.70473933]
[1772780867291,3.90605757,2076.8,2076.3,3.90877414]
[1772780867593,3.90605757,2076.8,2076.4,0.001]
[1772780867887,3.90605757,2076.8,2076.4,2.69778072]
[1772780867888,0.002,2076.6,2076.4,2.69778072]
[1772780869569,0.25243484,2076.6,2076.4,2.69778072]
[1772780871899,0.25243484,2076.6,2076.4,3.90178196]
[1772780872066,0.002,2076.6,2076.4,3.90178196]
[1772780872271,0.25243484,2076.6,2076.5,2.67673526]
[1772780873020,0.002,2076.8,2076.5,2.66974828]
[1772780873292,0.25043484,2076.7,2076.5,2.66974828]
[1772780874294,0.25043484,2076.7,2076.4,1.20500124]
[1772780874295,0.25043484,2076.6,2076.4,0.001]
[1772780874493,0.25043484,2076.6,2076.5,1.619]
[1772780878511,0.25043484,2076.6,2076.5,4.25893402]
[1772780879588,0.25043484,2076.6,2076.5,1.619]
[1772780881630,0.25243484,2076.6,2076.5,1.619]
[1772780886042,0.25243484,2076.6,2076.4,0.001]
[1772780886043,2.44954698,2076.5,2076.4,0.001]
[1772780887035,3.65349593,2076.5,2076.4,0.001]
[1772780887531,2.44954698,2076.5,2076.4,0.001]
[1772780888121,1.45636039,2076.6,2076.4,0.001]
[1772780888122,3.90590737,2076.6,2076.4,0.001]
[1772780888433,3.65547253,2076.6,2076.4,0.001]
[1772780890905,0.002,2076.6,2076.4,2.58244785]
[1772780891107,0.25043484,2076.5,2076.4,2.58244785]
[1772780891411,0.25043484,2076.5,2076.4,0.001]
[1772780893140,1.45438379,2076.5,2076.4,0.001]
[1772780893339,2.44954698,2076.4,2076.2,0.001]
[1772780894136,2.44954698,2076.4,2076.2,1.20512124]
[1772780894321,2.44954698,2076.4,2076.2,0.001]
[1772780895249,2.45154698,2076.4,2076.2,0.001]
[1772780895744,3.65557035,2076.4,2076.2,0.001]
[1772780895945,2.45154698,2076.4,2076.2,0.001]
[1772780896149,3.6555699,2076.4,2076.2,0.001]
[1772780896350,2.45154698,2076.4,2076.2,0.001]
[1772780897153,2.45154698,2076.8,2076.3,2.58261538]
[1772780897319,2.45154698,2076.8,2076.4,3.78662231]
[1772780897731,3.65532471,2076.8,2076.4,3.78662231]
[1772780898248,3.65532267,2076.8,2076.4,3.78662231]
[1772780898618,2.45154698,2076.8,2076.4,3.78662231]
[1772780898819,2.45154698,2076.8,2076.4,3.79164728]
[1772780899231,3.65532674,2076.8,2076.4,3.79164728]
[1772780899521,2.44954698,2076.7,2076.4,1.622]
[1772780902550,1.20386318,2076.7,2076.4,1.622]
[1772780902755,2.44954698,2076.6,2076.4,1.622]
[1772780903952,2.44954698,2076.6,2076.2,1.20511414]
[1772780904133,2.44954698,2076.6,2076.2,1.624]
[1772780904329,1.20386318,2076.7,2076.3,2.5629029]
[1772780904330,2.44954698,2076.7,2076.3,2.5629029]
[1772780905024,2.44954698,2076.7,2076.3,3.76691286]
[1772780907566,2.44954698,2076.6,2076.2,0.001]
[1772780907751,2.44954698,2076.6,2076.2,5.37134113]
[1772780907960,0.002,2076.5,2076.3,2.54323016]
[1772780908134,0.002,2076.5,2076.4,0.001]
[1772780908338,0.002,2076.5,2076.4,2.54423016]
[1772780909954,0.002,2076.5,2076.4,3.74823709]
[1772780911768,0.002,2076.7,2076.5,2.34186013]
[1772780914264,0.002,2076.9,2076.5,2.34186013]
[1772780914764,2.40131821,2076.9,2076.5,1.625]
[1772780914963,2.40131821,2076.9,2076.4,0.001]
[1772780915176,2.40131821,2076.9,2076.2,0.001]
[1772780915471,2.40131821,2076.9,2076.3,3.96686013]
[1772780916566,2.40131821,2076.9,2076.4,1.20400693]
[1772780916567,2.39931821,2076.8,2076.4,1.20400693]
[1772780917376,2.39931821,2076.8,2076.3,5.17088219]
[1772780918570,1.20381673,2076.8,2076.3,2.82902206]
[1772780918771,2.39931821,2076.7,2076.3,2.82902206]
[1772780919754,2.39931821,2076.7,2076.3,5.17088219]
[1772780920276,2.39931821,2076.7,2076.5,0.001]
[1772780920771,2.40131821,2076.7,2076.5,0.001]
[1772780923581,4.81692195,2076.9,2076.5,0.001]
[1772780923582,0.002,2076.9,2076.6,2.34186013]
[1772780923754,0.002,2077.5,2076.8,2.34186013]
[1772780923946,0.002,2077.5,2077.0,2.34186013]
[1772780924850,0.65391033,2077.4,2077.0,2.34186013]
[1772780925750,0.65391033,2077.4,2077.2,2.34186013]
[1772780928170,0.65391033,2077.4,2077.2,3.54536628]
[1772780929797,0.65391033,2077.4,2077.0,3.54548325]
[1772780930093,3.05322854,2077.4,2077.0,3.54548325]
[1772780930458,2.39931821,2077.3,2076.9,1.20368852]
[1772780930659,2.39931821,2077.3,2077.0,1.629]
[1772780930858,2.39931821,2077.3,2076.6,1.629]
[1772780932758,2.39931821,2077.1,2076.6,2.83284983]
[1772780933801,0.65391033,2077.0,2076.6,2.83284983]
[1772780933972,3.05322854,2077.0,2076.9,0.001]
[1772780936377,3.05322854,2077.0,2076.5,0.001]
[1772780936378,2.39931821,2076.9,2076.5,0.001]
[1772780936901,2.39931821,2076.7,2076.5,0.001]
[1772780939787,0.65391033,2076.6,2076.5,0.001]
[1772780940087,3.18738734,2076.6,2076.5,0.001]
[1772780940403,0.65391033,2076.6,2076.4,2.83400693]
[1772780941816,2.53347701,2076.5,2076.2,0.001]
[1772780942104,2.53347701,2076.5,2076.2,1.20511723]
[1772780942271,2.53347701,2076.5,2076.2,1.2050998]
[1772780945513,2.53347701,2076.5,2076.2,0.001]
[1772780945799,0.65391033,2076.4,2076.2,0.001]
[1772780945991,3.18738734,2076.4,2076.2,0.001]
[1772780946411,2.53347701,2076.3,2076.2,0.001]
[1772780946610,2.53347701,2076.3,2076.0,1.631]
[1772780949796,0.65391033,2076.2,2076.0,1.631]
[1772780949998,3.18738734,2076.2,2076.0,1.631]
[1772780950715,2.53347701,2076.1,2076.0,1.631]
[1772780951089,0.65391033,2076.2,2076.0,1.631]
[1772780951489,3.18738734,2076.2,2076.0,1.631]
[1772780955649,3.73742684,2076.5,2076.1,1.20418091]
[1772780955925,2.53347701,2076.5,2076.2,2.44495881]
[1772780957498,2.53347701,2076.5,2076.2,3.64905255]
[1772780957698,3.18738734,2076.4,2076.1,1.20413487]
[1772780958021,3.18738734,2076.4,2076.0,5.28016208]
[1772780958623,2.53347701,2076.3,2076.0,5.28016208]
[1772780958826,2.53547701,2076.3,2076.0,5.28016208]
[1772780959023,2.53547701,2076.3,2076.0,3.65016208]
[1772780959321,2.53547701,2076.3,2076.1,0.001]
[1772780960221,0.002,2076.3,2076.1,0.001]
[1772780960426,0.002,2076.3,2076.1,2.44595881]
[1772780961835,0.65391033,2076.2,2076.1,3.65013972]
[1772780962241,0.65391033,2076.2,2076.1,2.44595881]
[1772780962544,0.65391033,2076.2,2075.9,0.001]
[1772780962545,2.53347701,2076.1,2075.9,0.001]
[1772780963616,3.73766853,2076.1,2075.9,0.001]
[1772780963820,2.53347701,2076.1,2075.9,0.001]
[1772780964622,3.73766225,2076.1,2075.9,0.001]
[1772780964824,2.53347701,2076.0,2075.9,0.001]
[1772780965713,4.39162626,2076.0,2075.9,0.001]
[1772780965909,2.53347701,2075.9,2075.7,0.001]
[1772780966109,2.53347701,2075.9,2075.3,2.44495881]
[1772780968134,2.53347701,2075.7,2075.3,2.44495881]
[1772780969208,1.20435494,2075.8,2075.3,2.44495881]
[1772780969209,3.18738734,2075.6,2075.3,2.44495881]
[1772780969609,3.18738734,2075.6,2075.2,1.636]
[1772780970139,1.20458706,2075.4,2075.2,1.636]
[1772780970335,1.20458706,2075.4,2074.8,4.81971655]
[1772780970336,3.66580262,2075.4,2075.0,4.08901011]
[1772780970835,2.46121556,2075.4,2075.0,4.08901011]
[1772780972235,2.46121556,2075.4,2075.3,0.001]
[1772780972236,3.66580262,2075.4,2075.3,0.001]
[1772780973917,2.46121556,2075.4,2075.3,0.001]
[1772780977023,3.66580262,2075.4,2075.3,0.001]
[1772780977223,2.46121556,2075.4,2075.3,0.001]
[1772780977640,3.66580262,2075.4,2075.3,0.001]
[1772780980511,2.49551953,2075.3,2075.0,0.001]
[1772780981640,1.20470316,2075.2,2075.0,0.001]
[1772780981846,2.49551953,2075.1,2075.0,0.001]
[1772780982248,2.49551953,2075.1,2074.0,3.43650608]
[1772780982543,2.49551953,2075.1,2073.8,10.65180615]
[1772780982544,2.49551953,2075.1,2074.1,2.40206791]
[1772780982742,2.49551953,2074.9,2074.0,2.39748152]
[1772780983247,2.49551953,2074.9,2073.9,2.39748152]
[1772780983940,2.49551953,2074.9,2073.9,2.39292911]
[1772780983941,2.49551953,2074.7,2073.9,2.39292911]
[1772780984422,2.49551953,2074.7,2073.8,2.74351279]
[1772780984423,2.49551953,2074.7,2073.8,5.13480915]
[1772780984627,2.49551953,2074.7,2073.9,2.39129636]
[1772780986340,2.49551953,2074.5,2073.9,2.39129636]
[1772780987140,2.49551953,2074.5,2073.8,1.538]
[1772780987344,2.49551953,2074.5,2073.6,4.82242267]
[1772780987345,2.49551953,2074.5,2073.6,2.382151]
[1772780988451,2.49551953,2074.3,2073.6,3.58322122]
[1772780989246,2.49551953,2074.3,2073.6,2.37759092]
[1772780989443,2.49551953,2074.3,2073.6,3.58321376]
[1772780990038,2.49551953,2074.3,2073.6,3.58322232]
[1772780990547,2.49551953,2074.1,2073.7,2.36398352]
[1772780991132,2.49551953,2074.1,2073.6,2.36398352]
[1772780992453,2.49551953,2073.9,2073.4,2.35946307]
[1772780994135,2.49551953,2073.9,2073.3,1.20579892]
[1772780994557,2.49551953,2073.7,2073.3,1.20579892]
[1772780994757,2.49551953,2073.9,2073.4,2.34595647]
[1772780994924,1.61076966,2074.2,2073.4,2.34595647]
[1772780995127,2.8160583,2074.2,2073.4,2.34595647]
[1772780995340,5.31157783,2074.2,2073.4,2.34595647]
[1772780995736,2.8160583,2074.2,2073.4,2.34595647]
[1772780995938,2.49551953,2074.1,2073.4,2.34595647]
[1772780996540,2.49551953,2073.9,2073.6,0.0011]
[1772780996942,1.20540019,2074.0,2073.6,0.0011]
[1772780997155,2.49551953,2073.9,2073.6,0.0011]
[1772780999178,5.06765528,2074.1,2073.6,2.46385293]
[1772781000177,4.96889744,2074.1,2073.6,2.46385293]
[1772781000365,2.39676169,2074.0,2073.6,2.46385293]
[1772781001047,3.60220704,2074.0,2073.6,2.46385293]
[1772781001972,1.36675606,2074.1,2073.7,2.52820293]
[1772781002952,2.57210484,2074.1,2073.7,2.52820293]
[1772781003276,2.39676169,2073.9,2073.6,0.0011]
[1772781005651,2.39676169,2073.8,2073.6,0.0011]
[1772781006165,2.39676169,2073.8,2073.4,0.0011]
[1772781007174,2.39676169,2073.6,2073.4,0.0011]
[1772781009384,3.6023944,2073.6,2073.5,0.0011]
[1772781010880,2.39676169,2073.6,2073.5,0.0011]
[1772781011977,2.39676169,2073.5,2073.3,0.0011]
[1772781012368,2.39676169,2073.5,2073.1,0.0011]
[1772781013273,2.39676169,2073.3,2073.1,0.0011]
[1772781013856,2.39776169,2073.8,2073.2,2.52820293]
[1772781014049,3.60331817,2073.8,2073.2,2.52820293]
[1772781014467,2.39676169,2073.7,2073.2,2.52820293]
[1772781014871,0.001,2073.8,2073.2,2.52820293]
[1772781015077,1.20652174,2073.8,2073.2,2.52820293]
[1772781015886,2.39776169,2073.8,2073.3,3.73401009]
[1772781017882,3.60332741,2073.8,2073.3,3.73401009]
[1772781019194,1.20656572,2073.8,2073.3,3.73401009]
[1772781019355,2.39676169,2073.7,2073.3,2.52820293]
[1772781019564,2.39676169,2073.7,2073.3,3.73400705]
[1772781021290,3.60234329,2073.7,2073.3,3.73400705]
[1772781021689,2.39676169,2073.7,2073.3,3.73400705]
[1772781021873,2.39676169,2073.7,2073.5,0.0011]
[1772781023096,0.001,2073.8,2073.5,0.0011]
[1772781023262,2.39776169,2073.8,2073.5,0.0011]
[1772781023606,3.6032828,2073.8,2073.5,0.0011]
[1772781024199,2.39776169,2073.8,2073.5,0.0011]
[1772781024695,2.39676169,2073.7,2073.1,0.0011]
[1772781024888,2.39676169,2073.5,2073.1,0.0011]
[1772781025788,2.39676169,2073.5,2072.6,1.633]
[1772781026167,1.99487408,2073.6,2072.5,2.52820293]
[1772781026168,2.39676169,2073.3,2072.5,2.52820293]
[1772781026364,2.39676169,2073.3,2072.5,3.73446734]
[1772781026570,2.39676169,2073.3,2072.5,2.52820293]
[1772781026766,2.39676169,2073.3,2072.3,1.20636606]
[1772781026967,2.39676169,2073.3,2072.2,2.52820293]
[1772781026968,2.39676169,2073.1,2072.2,2.52820293]
[1772781027171,2.39676169,2073.1,2072.0,3.73472334]
[1772781027172,2.62112293,2073.1,2072.0,3.73472334]
[1772781027373,2.39676169,2072.9,2072.0,3.73472334]
[1772781027867,2.39676169,2072.7,2071.8,1.20663472]
[1772781028074,2.39676169,2072.7,2071.9,2.52820293]
[1772781028600,2.39676169,2072.7,2071.7,1.2066995]
[1772781028775,2.39676169,2072.7,2071.8,2.52820293]
[1772781029294,2.39676169,2072.7,2071.9,3.73482487]
[1772781029295,2.39676169,2072.5,2071.9,3.73482487]
[1772781030372,1.42828675,2072.8,2072.0,2.40666887]
[1772781030576,3.86834437,2072.8,2072.0,2.40666887]
[1772781031093,2.44005762,2072.7,2072.0,2.40666887]
[1772781031291,3.64621543,2072.7,2072.1,1.20650547]
[1772781031480,3.64623313,2072.7,2072.1,3.61317434]
[1772781032492,5.04655433,2072.8,2072.2,2.40666887]
[1772781032493,0.22216124,2072.8,2072.2,2.40666887]
[1772781032900,1.42825939,2072.8,2072.2,2.40666887]
[1772781033304,3.64627203,2072.6,2072.0,3.6131888]
[1772781033677,2.44005762,2072.5,2072.1,2.40666887]
[1772781034078,2.44005762,2072.5,2072.2,0.0011]
[1772781034899,1.42828782,2072.8,2072.2,2.40776887]
[1772781035106,3.86834544,2072.8,2072.2,2.40776887]
[1772781035301,2.44005762,2072.7,2072.2,0.0011]
[1772781035505,2.44005762,2072.5,2072.2,0.0011]
[1772781037198,2.44005762,2072.5,2072.0,0.0011]
[1772781037396,2.44005762,2072.3,2071.7,0.0011]
[1772781037604,2.44005762,2072.3,2071.2,4.82790411]
[1772781037605,2.44005762,2072.3,2071.3,3.61364033]
[1772781038699,2.44005762,2072.3,2071.4,2.40666887]
[1772781040104,1.20644725,2072.2,2071.4,3.61354477]
[1772781040308,2.44005762,2072.1,2071.4,3.61354477]
[1772781040711,2.44005762,2072.1,2071.2,2.40666887]
[1772781042183,3.64660868,2072.1,2071.4,2.40666887]
[1772781042378,2.44005762,2072.1,2071.4,2.40666887]
[1772781042614,3.64652015,2072.2,2071.4,2.40666887]
[1772781042795,2.44005762,2072.1,2071.3,1.20697146]
[1772781043107,2.44005762,2072.1,2071.4,2.40666887]
[1772781044292,2.44005762,2072.0,2071.5,1.20685493]
[1772781044907,2.44005762,2072.0,2071.4,1.20687421]
[1772781045281,2.44005762,2072.2,2071.5,2.40666887]
[1772781045489,1.20642065,2072.3,2071.5,2.40666887]
[1772781045788,3.64647827,2072.3,2071.5,2.40666887]
[1772781045989,2.44005762,2072.2,2071.5,2.40666887]
[1772781046407,2.44005762,2072.2,2071.6,3.61346554]
[1772781046408,3.64650533,2072.2,2071.6,3.61346554]
[1772781049614,2.44005762,2072.1,2071.5,1.20684106]
[1772781050694,3.64659232,2072.1,2071.5,3.61350993]
[1772781050891,2.44005762,2072.0,2071.5,3.61350993]
[1772781051911,2.44005762,2072.0,2071.4,0.0011]
[1772781052798,2.44005762,2071.8,2071.4,0.0011]
[1772781053190,1.20660474,2072.0,2071.4,2.40776887]
[1772781053714,1.20662194,2071.9,2071.4,2.40776887]
[1772781054017,3.64667956,2071.9,2071.4,2.40776887]
[1772781054490,2.44005762,2071.8,2071.4,2.40776887]
[1772781055216,2.44005762,2071.8,2071.4,3.61463647]
[1772781056004,2.44005762,2071.8,2071.4,1.2079676]
[1772781057126,2.44005762,2071.8,2071.4,0.0011]
[1772781057127,2.44005762,2071.7,2071.4,0.0011]
[1772781057622,2.44005762,2071.7,2071.4,1.20800831]
[1772781058630,2.44005762,2071.7,2071.4,0.0011]
[1772781058927,2.44005762,2071.7,2071.6,0.0011]
[1772781059124,1.20670973,2071.8,2071.6,0.0011]
[1772781059309,3.64676735,2071.8,2071.6,0.0011]
[1772781060314,2.44005762,2071.8,2071.6,0.0011]
[1772781060517,1.2066743,2071.9,2071.6,0.0011]
[1772781060760,2.25310552,2071.8,2071.6,0.0011]
[1772781061023,1.2066743,2071.9,2071.6,0.0011]
[1772781061192,2.25310552,2071.8,2071.4,0.0011]
[1772781061395,2.25310552,2071.8,2071.1,1.20816692]
[1772781061596,2.25310552,2071.8,2071.1,3.51697533]
[1772781062199,2.25310552,2071.8,2071.1,2.30990841]
[1772781062200,2.25310552,2071.6,2071.1,2.30990841]
[1772781062407,2.25310552,2071.6,2071.1,0.0011]
[1772781063002,2.25310552,2071.5,2070.6,2.30880841]
[1772781064327,2.25310552,2071.5,2070.6,3.51618314]
[1772781064328,2.25310552,2071.3,2070.6,3.51618314]
[1772781064555,2.25310552,2071.0,2070.2,1.628]
[1772781065327,2.25310552,2071.0,2070.1,3.51645174]
[1772781065772,2.25310552,2071.0,2070.1,2.30880841]
[1772781065940,2.25310552,2071.0,2069.9,2.30880841]
[1772781066367,2.25310552,2070.8,2069.9,2.30880841]
[1772781066731,2.25310552,2070.7,2069.7,3.76900734]
[1772781066963,2.25310552,2070.7,2069.7,6.07781575]
[1772781067342,2.25310552,2070.7,2069.7,3.51666925]
[1772781067543,2.25310552,2070.4,2069.4,3.6783384]
[1772781067742,2.99720459,2070.9,2069.4,3.6783384]
[1772781067743,2.25310552,2070.8,2069.5,2.30880841]
[1772781069076,2.25310552,2070.6,2069.6,1.20796289]
[1772781069276,2.25310552,2070.6,2069.7,2.30880841]
[1772781071150,2.25310552,2070.6,2069.9,2.30880841]
[1772781071151,3.46054333,2070.5,2069.9,2.30880841]
[1772781071351,3.46054333,2070.5,2069.7,0.0011]
[1772781071352,2.25310552,2070.4,2069.7,0.0011]
[1772781071651,2.25310552,2070.4,2069.7,3.51779665]
[1772781071838,3.46051621,2070.6,2069.8,2.30880841]
[1772781072050,2.25310552,2070.5,2069.8,2.30880841]
[1772781073564,4.82905843,2070.8,2070.0,2.30880841]
[1772781073565,2.25310552,2070.8,2070.0,2.30880841]
[1772781074464,2.25310552,2070.8,2069.8,1.20784616]
[1772781074634,2.25310552,2070.8,2069.8,3.51665457]
[1772781075762,2.25310552,2070.6,2069.9,2.30880841]
[1772781078067,2.25310552,2070.4,2069.9,2.30880841]
[1772781078371,2.25310552,2070.4,2069.7,3.5178072]
[1772781080235,3.46065998,2070.3,2069.7,3.5178072]
[1772781080440,2.25310552,2070.2,2069.7,0.0011]
[1772781080669,2.25310552,2070.2,2069.5,0.0011]
[1772781080877,2.25310552,2070.2,2069.6,2.30880841]
[1772781081380,2.25310552,2070.2,2069.5,0.0011]
[1772781082142,2.25310552,2070.0,2069.5,0.0011]
[1772781082770,2.25310552,2070.0,2069.5,2.30990841]
[1772781083717,1.20767112,2070.1,2069.5,2.30990841]
[1772781084091,1.20767112,2070.1,2069.9,0.0011]
[1772781084292,4.8306845,2070.2,2069.9,0.0011]
[1772781084293,2.25310552,2070.2,2069.9,0.0011]
[1772781084993,2.25310552,2070.5,2069.9,2.30990841]
[1772781086411,1.20749613,2070.4,2069.9,2.30990841]
[1772781088096,3.46060165,2070.4,2069.9,2.30990841]
[1772781088298,3.46060165,2070.4,2069.6,0.0011]
[1772781088299,2.25310552,2070.3,2069.6,0.0011]
[1772781088522,2.25310552,2070.3,2069.6,2.30990841]
[1772781090417,3.52036721,2070.2,2069.6,2.30990841]
[1772781091009,3.52036721,2070.2,2069.6,1.20905715]
[1772781091184,3.52036721,2070.2,2069.7,2.21162615]
[1772781091185,1.20761279,2070.2,2069.7,2.21162615]
[1772781095590,2.31275442,2070.2,2069.7,2.21162615]
[1772781096489,2.31275442,2070.2,2069.6,0.0011]
[1772781097183,2.31275442,2070.2,2068.9,2.21162615]
[1772781097388,2.31275442,2069.9,2069.0,2.21162615]
[1772781097812,3.52056689,2069.9,2069.1,2.21162615]
[1772781098018,2.31275442,2069.8,2069.1,2.21162615]
[1772781098920,1.20781247,2069.9,2069.1,2.21162615]
[1772781099101,2.31275442,2069.8,2069.1,2.21162615]
[1772781100318,3.52065894,2069.7,2069.1,3.41988023]
[1772781100484,2.31275442,2069.6,2069.1,2.21162615]
[1772781102086,2.31275442,2069.6,2069.2,2.21162615]
[1772781102287,1.20802126,2069.5,2069.2,2.21162615]
[1772781102716,2.31275442,2069.4,2068.9,2.21162615]
[1772781102915,1.20802126,2069.5,2068.9,2.21162615]
[1772781103794,3.52077568,2069.5,2068.9,2.21162615]
[1772781104205,3.52077568,2069.5,2068.8,2.12223504]
[1772781104206,1.20813801,2069.3,2068.8,0.9138425]
[1772781104419,2.31275442,2069.2,2068.8,0.9138425]
[1772781105425,2.31275442,2069.2,2068.4,2.21162615]
[1772781106334,1.20825479,2069.1,2068.5,1.20860526]
[1772781106505,1.20825479,2069.1,2068.6,2.21162615]
[1772781106703,3.52100921,2069.1,2068.6,2.21162615]
[1772781107327,3.52100921,2069.1,2068.5,1.20860526]
[1772781107328,3.52100921,2069.1,2068.5,2.21162615]
[1772781107524,1.20825479,2069.1,2068.5,2.21162615]
[1772781107707,2.31275442,2069.0,2068.5,2.21162615]
[1772781108509,2.31275442,2068.9,2068.4,1.20862578]
[1772781109128,2.31275442,2068.9,2068.6,0.0011]
[1772781110532,1.20837013,2069.0,2068.6,0.0011]
[1772781110834,3.52103626,2069.1,2068.6,2.21272615]
[1772781111202,1.20824036,2069.2,2068.6,2.21272615]
[1772781111435,3.52099478,2069.2,2068.6,2.21272615]
[1772781111728,2.31275442,2069.5,2068.6,2.21272615]
[1772781112705,3.52083405,2069.4,2068.8,2.21162615]
[1772781113138,1.20806767,2069.5,2068.8,2.21162615]
[1772781113316,7.14470211,2069.6,2068.8,2.21162615]
[1772781113317,3.52075534,2069.6,2068.8,2.21162615]
[1772781113518,3.52072837,2069.6,2068.8,2.21162615]
[1772781113730,3.52072837,2069.6,2069.0,2.21162615]
[1772781113904,2.31275442,2069.5,2069.0,2.21162615]
[1772781114104,4.83147364,2069.8,2069.0,2.21162615]
[1772781114310,1.20790452,2069.7,2069.0,2.21162615]
[1772781115236,1.20790452,2069.7,2069.2,2.21162615]
[1772781116512,2.31275442,2069.6,2069.1,3.41988094]
[1772781116718,2.31275442,2069.6,2069.1,2.21162615]
[1772781116916,2.31275442,2069.8,2069.1,2.21162615]
[1772781117327,3.52065894,2069.7,2069.1,3.41987956]
[1772781117728,2.31275442,2069.6,2069.1,2.21162615]
[1772781118440,2.31275442,2069.6,2069.1,3.41987498]
[1772781118607,2.31275442,2069.6,2069.1,2.21162615]
[1772781119517,1.20802126,2069.5,2069.1,2.21162615]
[1772781120037,1.20802126,2069.5,2068.8,2.17048307]
[1772781120219,4.83139638,2069.8,2068.8,2.17048307]
[1772781120220,2.18095109,2069.8,2068.8,2.17048307]
[1772781121127,2.18095109,2069.8,2068.8,2.17158307]
[1772781121536,0.001,2069.5,2069.0,2.17048307]
[1772781122034,2.18195109,2069.5,2068.9,2.17048307]
[1772781122869,0.001,2069.5,2068.9,2.17048307]
[1772781123021,1.2078778,2069.8,2068.9,2.17048307]
[1772781123228,4.83128704,2069.9,2068.9,2.17048307]
[1772781123229,1.20781851,2069.9,2068.9,2.17048307]
[1772781123453,3.38972234,2070.0,2069.1,2.17048307]
[1772781123622,0.001,2070.0,2069.1,2.17048307]
[1772781124022,1.20873095,2070.0,2069.1,2.17048307]
[1772781124446,0.001,2070.0,2069.1,2.17048307]
[1772781125254,1.20873136,2070.0,2069.1,2.17048307]
[1772781125628,2.18095109,2069.9,2069.3,2.17048307]
[1772781127665,2.18095109,2069.7,2069.1,2.17048307]
[1772781129697,1.20796289,2069.6,2069.1,3.37868888]
[1772781130285,1.20796289,2069.6,2069.1,1.20820581]
[1772781130592,3.38891398,2069.6,2069.1,3.37868888]
[1772781131898,3.38891398,2069.6,2069.2,2.17048307]
[1772781135679,3.38891398,2069.6,2069.3,0.0011]
[1772781136634,2.18095109,2069.5,2068.8,2.17158307]
[1772781136784,2.18095109,2069.5,2068.9,2.17048307]
[1772781136985,1.20796289,2069.6,2068.9,2.17048307]
[1772781137408,3.38886423,2069.7,2068.9,2.17048307]
[1772781137616,1.20791314,2069.7,2068.9,2.17048307]
[1772781138510,7.01351592,2069.8,2069.1,2.17048307]
[1772781138511,3.38983703,2069.8,2069.1,2.17048307]
[1772781140014,2.18195109,2069.8,2069.1,2.17048307]
[1772781140202,2.18195109,2069.8,2069.2,2.17048307]
[1772781140203,1.20885231,2069.8,2069.2,2.17048307]
[1772781140406,3.3898034,2069.8,2069.2,3.78548307]
[1772781140607,2.18095109,2069.5,2069.2,1.615]
[1772781141114,2.18095109,2069.5,2069.1,2.17048307]
[1772781141814,3.38890232,2069.7,2069.2,2.17048307]
[1772781142199,1.20884674,2069.8,2069.2,2.17048307]
[1772781142611,1.20884674,2069.8,2069.1,1.20825248]
[1772781142612,2.18195109,2069.8,2069.3,3.37862108]
[1772781142790,2.18195109,2069.8,2069.3,2.17048307]
[1772781144609,1.20790452,2069.7,2069.3,2.17048307]
[1772781144813,3.38885561,2069.7,2069.3,2.17048307]
[1772781145403,0.001,2069.8,2069.4,2.17048307]
[1772781145598,1.20886698,2069.8,2069.4,2.17048307]
[1772781145802,3.38981807,2069.8,2069.4,2.17048307]
[1772781146192,3.44957946,2069.8,2069.3,0.19229437]
[1772781147203,0.001,2069.8,2069.4,0.25246474]
[1772781148419,0.001,2070.0,2069.4,0.24883635]
[1772781148602,0.001,2070.0,2069.6,0.26244303]
[1772781149114,0.001,2070.0,2069.8,0.25881943]
[1772781149534,0.001,2070.0,2069.2,4.83268883]
[1772781149535,2.23390914,2069.9,2069.2,0.25881943]
[1772781149828,0.001,2070.0,2069.4,0.25522862]
[1772781150005,0.001,2069.6,2069.4,0.25522862]
[1772781150206,0.001,2070.0,2069.4,0.25561672]
[1772781150724,0.001,2070.0,2069.6,0.25241872]
[1772781151120,0.001,2070.0,2069.7,0.25241872]
[1772781154127,0.001,2070.0,2069.8,0.24157141]
[1772781154724,0.001,2070.0,2069.7,0.2379684]